lending/lending_fUSD_20250917
["ID","MTS","AMOUNT","RATE_DAILY","PERIOD"]
[385954805,1758149453205,-497.77,0.00022191,2]
[385954806,1758149453215,-400.0,0.00022191,2]
[385954807,1758149453224,-400.0,0.00022191,2]
[385954808,1758149453234,-400.0,0.00022191,2]
[385954809,1758149453243,-400.0,0.00022191,2]
[385954810,1758149453252,-400.0,0.00022191,2]
[385954811,1758149453262,-400.0,0.00022191,2]
[385954812,1758149453272,-400.0,0.00022191,2]
[385954813,1758149453281,-400.0,0.00022191,2]
[385954814,1758149453290,-400.0,0.00022191,2]
[385954815,1758149453300,-400.0,0.00022191,2]
[385954816,1758149453309,-678.15,0.00022191,2]
[385954817,1758149453318,-400.0,0.00022191,2]
[385954818,1758149453328,-611.57,0.00022191,2]
[385954819,1758149453337,-400.0,0.00022191,2]
[385954820,1758149453347,-400.0,0.00022191,2]
[385954821,1758149453356,-384.06386511,0.00022191,2]
[385954822,1758149453365,-400.0,0.00022191,2]
[385954823,1758149453374,-281.03865908,0.00022191,2]
[385954824,1758149453383,-503.22,0.00022191,2]
[385954825,1758149453393,-972.4,0.00022191,2]
[385954826,1758149453402,-413.22,0.00022191,2]
[385954827,1758149453411,-400.0,0.00022191,2]
[385954828,1758149453421,-400.0,0.00022191,2]
[385954829,1758149453431,-763.55,0.00022191,2]
[385954830,1758149453440,-400.0,0.00022191,2]
[385954831,1758149453449,-400.0,0.00022191,2]
[385954832,1758149453459,-607.63,0.00022191,2]
[385954833,1758149453468,-400.0,0.00022191,2]
[385954834,1758149453478,-400.0,0.00022191,2]
[385954835,1758149453487,-412.74,0.00022191,2]
[385954836,1758149453496,-407.4,0.00022191,2]
[385954837,1758149453506,-400.0,0.00022191,2]
[385954838,1758149453515,-400.0,0.00022191,2]
[385954839,1758149453524,-400.0,0.00022191,2]
[385954840,1758149453534,-400.0,0.00022191,2]
[385954841,1758149453543,-736.5111935,0.00022191,2]
[385954842,1758149453906,-176.7388065,0.00022191,2]
[385954843,1758149453916,-400.0,0.00022191,2]
[385954844,1758149453925,-400.0,0.00022191,2]
[385954845,1758149453935,-400.0,0.00022191,2]
[385954846,1758149453945,-400.0,0.00022191,2]
[385954847,1758149453954,-406.34,0.00022191,2]
[385954848,1758149453964,-400.0,0.00022191,2]
[385954849,1758149453973,-400.0,0.00022191,2]
[385954850,1758149453983,-400.0,0.00022191,2]
[385954851,1758149453992,-400.0,0.00022191,2]
[385954852,1758149454002,-400.0,0.00022191,2]
[385954853,1758149454011,-487.63778758,0.00022191,2]
[385954854,1758149454020,-400.0,0.00022191,2]
[385954855,1758149454030,-400.0,0.00022191,2]
[385954856,1758149454039,-327.2176024,0.00022191,2]
[385954857,1758149454052,-400.0,0.00022191,2]
[385954858,1758149454062,-400.0,0.00022191,2]
[385954859,1758149454072,-400.0,0.00022191,2]
[385954860,1758149454081,-400.0,0.00022191,2]
[385954861,1758149454091,-415.5,0.00022191,2]
[385954862,1758149454100,-400.0,0.00022191,2]
[385954863,1758149454109,-400.0,0.00022191,2]
[385954864,1758149454118,-400.0,0.00022191,2]
[385954865,1758149454128,-575.12,0.00022191,2]
[385954866,1758149454139,-415.92174486,0.00022191,2]
[385954867,1758149454148,-400.0,0.00022191,2]
[385954868,1758149454157,-400.0,0.00022191,2]
[385954869,1758149454166,-400.0,0.00022191,2]
[385954870,1758149454175,-400.0,0.00022191,2]
[385954871,1758149454184,-454.66592699,0.00022191,2]
[385954872,1758149454194,-519.66,0.00022191,2]
[385954873,1758149454203,-400.0,0.00022191,2]
[385954874,1758149454213,-2237.76,0.00022191,2]
[385954875,1758149454223,-400.0,0.00022191,2]
[385954876,1758149454231,-400.0,0.00022191,2]
[385954877,1758149454241,-637.72,0.00022191,2]
[385954878,1758149454250,-400.0,0.00022191,2]
[385954879,1758149454259,-400.0,0.00022191,2]
[385954880,1758149454268,-400.0,0.00022191,2]
[385954881,1758149454277,-511.9,0.00022191,2]
[385954882,1758149454288,-205.59,0.00022191,2]
[385954883,1758149454297,-400.0,0.00022191,2]
[385954884,1758149454306,-1163.31,0.00022191,2]
[385954885,1758149454315,-400.0,0.00022191,2]
[385954886,1758149454325,-400.0,0.00022191,2]
[385954887,1758149454334,-400.0,0.00022191,2]
[385954888,1758149454343,-400.0,0.00022191,2]
[385954889,1758149454352,-2129.87,0.00022191,2]
[385954890,1758149454361,-400.0,0.00022191,2]
[385954891,1758149454370,-445.18,0.00022191,2]
[385954892,1758149454380,-400.0,0.00022191,2]
[385954893,1758149454389,-400.0,0.00022191,2]
[385954894,1758149454398,-594.44,0.00022191,2]
[385954895,1758149454407,-400.0,0.00022191,2]
[385954896,1758149454416,-400.0,0.00022191,2]
[385954897,1758149454425,-406.4,0.00022191,2]
[385954898,1758149454435,-920.16,0.00022191,2]
[385954899,1758149454445,-656.48,0.00022191,2]
[385954900,1758149454454,-718.7,0.00022191,2]
[385954901,1758149454463,-400.0,0.00022191,2]
[385954902,1758149454528,-400.0,0.00022191,2]
[385954903,1758149454537,-400.0,0.00022191,2]
[385954904,1758149454546,-400.0,0.00022191,2]
[385954905,1758149454556,-697.32,0.00022191,2]
[385954906,1758149454564,-400.0,0.00022191,2]
[385954907,1758149454573,-440.33,0.00022191,2]
[385954908,1758149454583,-400.0,0.00022191,2]
[385954909,1758149454592,-2021.0,0.00022191,2]
[385954910,1758149454600,-400.0,0.00022191,2]
[385954911,1758149454610,-400.0,0.00022191,2]
[385954912,1758149454619,-382.56351889,0.00022191,2]
[385954913,1758149454939,-1174.910634,0.00022,5]
[385954914,1758149455010,-2087.799998,0.00022,5]
[385954915,1758149455414,-2250.289368,0.00022,5]
[385954916,1758149455424,-17.43648111,0.00022191,2]
[385954917,1758149455434,-400.0,0.00022191,2]
[385954918,1758149455443,-400.0,0.00022191,2]
[385954919,1758149455452,-400.0,0.00022191,2]
[385954920,1758149455461,-392.06995194,0.00022191,2]
[385954921,1758149455523,-57.65004806,0.00022191,2]
[385954922,1758149455533,-400.0,0.00022191,2]
[385954923,1758149455542,-1230.59,0.00022191,2]
[385954924,1758149455551,-37.63899451,0.00022191,2]
[385954925,1758149455562,-362.36100549,0.00022191,2]
[385954926,1758149455571,-400.0,0.00022191,2]
[385954927,1758149455580,-382.78899451,0.00022191,2]
[385954928,1758149455591,-365.67291092,0.00022191,2]
[385954929,1758149455603,-338.16809457,0.00022191,2]
[385954930,1758149455612,-400.0,0.00022191,2]
[385954931,1758149455621,-571.93,0.00022191,2]
[385954932,1758149455631,-400.0,0.00022191,2]
[385954933,1758149455640,-400.0,0.00022191,2]
[385954934,1758149455650,-400.0,0.00022191,2]
[385954935,1758149455658,-400.0,0.00022191,2]
[385954936,1758149455667,-511.13,0.00022191,2]
[385954937,1758149455676,-400.0,0.00022191,2]
[385954938,1758149455686,-487.11528135,0.00022191,2]
[385954939,1758149455695,-196.41025128,0.00022191,2]
[385954940,1758149455704,-400.0,0.00022191,2]
[385954941,1758149455713,-763.03,0.00022191,2]
[385954942,1758149455722,-400.0,0.00022191,2]
[385954943,1758149455731,-400.0,0.00022191,2]
[385954944,1758149455740,-1346.84,0.00022191,2]
[385954945,1758149455749,-400.0,0.00022191,2]
[385954946,1758149455757,-3430.3763728,0.00022191,2]
[385954949,1758149606029,500.0,0.00028078,120]
[385954950,1758149608572,-161.93,0.00021123,2]
[385954951,1758149608605,-92.25520986,0.00021167,2]
[385954952,1758149628054,-107.74479014,0.00021167,2]
[385954953,1758149638829,-292.25520986,0.0002113,2]
[385954954,1758149642800,-400.0,0.0002113,2]
[385954955,1758149645622,-400.0,0.0002113,2]
[385954956,1758149647861,-400.0,0.0002113,2]
[385954957,1758149650800,-400.0,0.0002113,2]
[385954958,1758149655008,-400.0,0.0002113,2]
[385954959,1758149658879,-400.0,0.0002113,2]
[385954960,1758149661126,-400.0,0.0002113,2]
[385954961,1758149662767,-400.0,0.0002113,2]
[385954962,1758149666758,-281.18717264,0.0002113,2]
[385954965,1758149672986,-354.18520986,0.0002113,2]
[385954966,1758149675137,-0.38240764,0.0002113,2]
[385954968,1758149722141,-170.24,0.00021064,2]
[385954969,1758149736683,167.98,0.00010532,2]
[385954970,1758149736893,167.98,0.00011086,2]
[385954971,1758149737164,167.98,0.00011641,2]
[385954972,1758149737369,167.98,0.00012195,2]
[385954973,1758149737583,167.98,0.00012749,2]
[385954974,1758149737798,167.98,0.00013303,2]
[385954975,1758149738021,167.98,0.00013858,2]
[385954976,1758149738495,167.98,0.00014412,2]
[385954977,1758149738671,167.98,0.00014966,2]
[385954978,1758149738901,167.98,0.00015521,2]
[385954979,1758149739156,167.98,0.00016075,2]
[385954980,1758149739358,167.98,0.00016629,2]
[385954981,1758149739571,167.98,0.00017184,2]
[385954982,1758149739768,167.98,0.00017738,2]
[385954983,1758149739986,167.98,0.00018292,2]
[385954984,1758149740201,167.98,0.00018846,2]
[385954985,1758149740408,167.98,0.00019401,2]
[385954986,1758149740601,167.98,0.00019955,2]
[385954989,1758149860194,-167.98,0.00020509,2]
[385954990,1758149860219,-61.39759236,0.00020966,2]
[385954991,1758149864276,-400.0,0.00020966,2]
[385954992,1758149866940,-400.0,0.00020966,2]
[385954993,1758149871294,-400.0,0.00020966,2]
[385954994,1758149873361,-400.0,0.00020966,2]
[385954995,1758149875074,-25.13240764,0.00020966,2]
[385954996,1758149875098,-159.78,0.00021015,2]
[385954997,1758149875124,-14.1823825,0.00021064,2]
[385954998,1758149879338,-153.7976175,0.00021064,2]
[385955001,1758150057910,-184.35,0.00020878,2]
[385955010,1758150224250,-225.74131211,0.00020764,2]
[385955014,1758150307263,150.0,0.00020195,2]
[385955015,1758150307525,150.0,0.00020195,2]
[385955016,1758150314366,251.36682096,0.00020195,2]
[385955018,1758150373170,202.9,0.0002,2]
[385955040,1758150632612,-174.2562642,0.00020564,2]
[385955041,1758150632622,-689.67937154,0.00020627,2]
[385955042,1758150632633,-978.52551601,0.00020627,2]
[385955043,1758150632643,-300.0,0.00020664,2]
[385955044,1758150632652,-53.47448399,0.00020701,3]
[385955045,1758150632766,-594.00941858,0.00020701,3]
[385955046,1758150632780,-18.51609743,0.00020701,3]
[385955047,1758150632790,-168.0,0.00020716,2]
[385955048,1758150632800,-68.36948424,0.00020727,2]
[385955049,1758150632811,-310.53751278,0.00020727,2]
[385955147,1758150638372,-80.08300298,0.00020727,2]
[385955148,1758150638382,-250.0,0.00020743,2]
[385955149,1758150638391,-1200.0,0.00020763,2]
[385955150,1758150638401,-5662.25868789,0.00020764,2]
[385955151,1758150638411,-300.0,0.00020795,2]
[385955152,1758150638425,-300.0,0.00020795,2]
[385955153,1758150638434,-158.0,0.00020796,2]
[385955154,1758150638444,-300.0,0.00020796,2]
[385955155,1758150638454,-1815.11,0.00020797,2]
[385955156,1758150638465,-225.74131211,0.000208,2]
[385955157,1758150638474,-279.0,0.000208,2]
[385955158,1758150638483,-150.0,0.00020822,7]
[385955159,1758150638492,-15912.35248724,0.00020841,2]
[385955160,1758150638598,-2006.18751276,0.00020841,2]
[385955161,1758150638608,-215.12,0.00020878,2]
[385955162,1758150638617,-167.05310542,0.00020948,2]
[385955163,1758150638627,-168.0,0.00021048,2]
[385955164,1758150638637,-172.74178427,0.0002113,2]
[385955165,1758150638646,-248.71531821,0.00021381,2]
[385955166,1758150638656,-151.0,0.00021381,2]
[385955167,1758150638665,-382.0,0.00021544,2]
[385955168,1758150638674,-126.79340018,0.00021621,2]
[385955169,1758150638687,-255.20659982,0.00021621,2]
[385955170,1758150638695,-202.47472403,0.00021642,2]
[385955295,1758150640345,-295.57702588,0.00021642,2]
[385955296,1758150640588,-61.17141159,0.00021642,2]
[385955347,1758150646675,-3596.33480719,0.00021642,2]
[385955348,1758150646684,-151.0,0.00021642,2]
[385955349,1758150646694,-151.0,0.00021642,2]
[385955350,1758150646703,-989.91280537,0.00021732,2]
[385955351,1758150646781,-2303.25095005,0.00021732,2]
[385955352,1758150646793,-1078.12320002,0.00021732,2]
[385955353,1758150646804,-970.37339199,0.00021732,2]
[385955354,1758150646900,-1181.75555361,0.00021732,2]
[385955362,1758150732911,-1815.8920873,0.00021038,2]
[385955366,1758150830475,-163.75183245,0.000248,30]
[385955371,1758150997032,1486.83175849,0.00030137,120]
[385955372,1758151138832,285.0,0.000198,2]
[385955375,1758151225651,186.89,0.000165,2]
[385955376,1758151309970,-153.28,0.00020418,2]
[385955379,1758151405694,-160.55,0.00020274,3]
[385955380,1758151455579,295.0,0.00030136,120]
[385955381,1758151460677,150.0,0.00020102,2]
[385955382,1758151507795,1605.07317904,0.0002,2]
[385955383,1758151507818,15000.0,0.0002,2]
[385955384,1758151507840,15000.0,0.0002,2]
[385955385,1758151507862,15000.0,0.0002,2]
[385955386,1758151507884,15000.0,0.0002,2]
[385955387,1758151507910,15000.0,0.0002,2]
[385955388,1758151507932,15000.0,0.0002,2]
[385955389,1758151507953,15000.0,0.0002,2]
[385955390,1758151507974,15000.0,0.0002,2]
[385955391,1758151507996,15000.0,0.0002,2]
[385955392,1758151508017,15000.0,0.0002,2]
[385955393,1758151508040,15000.0,0.0002,2]
[385955394,1758151508063,15000.0,0.0002,2]
[385955395,1758151508087,15000.0,0.0002,2]
[385955396,1758151508109,15000.0,0.0002,2]
[385955397,1758151508133,15000.0,0.0002,2]
[385955398,1758151508162,94200.0,0.0002,2]
[385955399,1758151508191,5468.76446099,0.0002,2]
[385955400,1758151508220,7417.0,0.0002,2]
[385955401,1758151508247,7417.0,0.0002,2]
[385955402,1758151508273,7417.0,0.0002,2]
[385955403,1758151508303,20000.0,0.0002,2]
[385955404,1758151508336,41217.89816362,0.0002,2]
[385955405,1758151508436,150.0,0.00019701,2]
[385955406,1758151514054,150.0,0.00019701,2]
[385955407,1758151514147,150.0,0.00019701,2]
[385955408,1758151515332,150.0,0.00019701,2]
[385955409,1758151515895,150.0,0.00019701,2]
[385955410,1758151519404,152.59674892,0.00019701,2]
[385955411,1758151522763,150.0,0.00019701,2]
[385955413,1758151528214,150.0,0.00019701,2]
[385955414,1758151528304,150.0,0.00019701,2]
[385955415,1758151528362,150.0,0.00019945,4]
[385955416,1758151528398,150.0,0.00020188,4]
[385955417,1758151530308,150.0,0.00019701,2]
[385955420,1758151544013,34.5437063,0.00019942,7]
[385955421,1758151544042,115.4562937,0.00019942,7]
[385955422,1758151562483,1596.00919039,8e-05,2]
[385955423,1758151566257,176.35,0.00019931,2]
[385955424,1758151598555,5000.0,0.0001993,2]
[385955426,1758151608108,-468.43,0.00020046,2]
[385955427,1758151608133,-186.99390288,0.00020173,2]
[385955428,1758151608154,-3769.41,0.00020246,2]
[385955429,1758151608178,-438.13698799,0.00020274,3]
[385955431,1758151628783,163.57,9.985e-05,2]
[385955432,1758151629099,163.57,0.00011649,2]
[385955433,1758151629304,163.57,0.00013313,2]
[385955434,1758151629507,163.57,0.00014977,2]
[385955435,1758151629751,163.57,0.00016641,2]
[385955436,1758151630476,163.57,0.00018306,2]
[385955437,1758151630538,163.57,0.0001997,2]
[385955441,1758151671295,290.0,0.000188,2]
[385955442,1758151671665,284.0,0.0001998,2]
[385955450,1758151721211,200.0,0.00019946,2]
[385955477,1758151831674,-3961.32181857,0.00020074,2]
[385955479,1758151831687,-2497.89818143,0.00020074,2]
[385955481,1758151831696,-67.31301201,0.00020274,3]
[385955483,1758151831706,-300.0,0.00020336,2]
[385955485,1758151831715,-168.0,0.00020398,2]
[385955487,1758151831725,-326.07,0.00020418,2]
[385955489,1758151831734,-150.0,0.00020431,4]
[385955491,1758151831744,-168.0,0.00020612,2]
[385955493,1758151831753,-942.70300959,0.00020669,2]
[385955495,1758151831765,-257.29699041,0.00020669,2]
[385955497,1758151831774,-320.90114029,0.0002067,2]
[385955503,1758151831817,-592.38885971,0.0002067,2]
[385955505,1758151831826,-150.0,0.00020674,4]
[385955507,1758151831837,-602.27,0.00020702,2]
[385955509,1758151831846,-683.31,0.00020725,2]
[385955511,1758151831856,-93.80990956,0.00020758,2]
[385955513,1758151831868,-206.19009044,0.00020758,2]
[385955515,1758151831878,-300.0,0.00020758,2]
[385955517,1758151831887,-840.51960088,0.0002076,2]
[385955519,1758151831908,-866.54039912,0.0002076,2]
[385955520,1758151831918,-150.0,0.00020796,4]
[385955521,1758151831928,-150.0,0.00020796,4]
[385955522,1758151831942,-150.0,0.00020796,4]
[385955523,1758151831951,-150.0,0.00020796,4]
[385955524,1758151831961,-250.0,0.00020824,2]
[385955525,1758151831971,-168.0,0.00020875,2]
[385955527,1758151831981,-168.0,0.000209,2]
[385955529,1758151831991,-150.0,0.00020918,4]
[385955531,1758151832001,-2051.0,0.00020935,2]
[385955533,1758151832011,-1082.0,0.00020948,2]
[385955534,1758151832020,-341.16450204,0.00020949,2]
[385955535,1758151832030,-2500.0,0.00020949,2]
[385955536,1758151832040,-6982.3754,0.00020949,2]
[385955537,1758151832050,-4035.1109,0.00020949,2]
[385955538,1758151832060,-74013.4164742,0.00020978,2]
[385955539,1758151832069,-501.87758542,0.0002102,2]
[385955540,1758151832079,-5881.3198818,0.00021038,2]
[385955541,1758151832090,-151.0,0.00021038,2]
[385955542,1758151832100,-151.0,0.00021038,2]
[385955544,1758151832110,-151.0,0.00021038,2]
[385955546,1758151832120,-151.0,0.00021038,2]
[385955547,1758151832130,-151.0,0.00021038,2]
[385955549,1758151832142,-151.0,0.00021038,2]
[385955551,1758151832153,-151.0,0.00021038,2]
[385955552,1758151832162,-151.0,0.00021038,2]
[385955553,1758151832172,-151.0,0.00021038,2]
[385955554,1758151832182,-151.0,0.00021038,2]
[385955555,1758151832193,-151.0,0.00021038,2]
[385955556,1758151832203,-165.78343445,0.00021038,2]
[385955557,1758151832213,-151.0,0.00021038,2]
[385955558,1758151832224,-151.0,0.00021038,2]
[385955559,1758151832234,-151.0,0.00021038,2]
[385955560,1758151832244,-151.0,0.00021038,2]
[385955561,1758151832254,-223.84346736,0.00021038,2]
[385955562,1758151832264,-7300.8117579,0.00021041,2]
[385955563,1758151832274,-151.0,0.00021048,2]
[385955564,1758151832284,-468.43,0.00021048,2]
[385955565,1758151832293,-516.07479255,0.00021048,3]
[385955566,1758151832303,-2426.531,0.0002105,2]
[385955567,1758151832313,-150.0,0.0002105,2]
[385955568,1758151832323,-150.0,0.0002105,2]
[385955569,1758151832332,-500.0,0.0002105,2]
[385955570,1758151832342,-150.0,0.0002105,2]
[385955571,1758151832352,-150.0,0.0002105,2]
[385955572,1758151832362,-150.0,0.0002105,2]
[385955573,1758151832372,-150.0,0.0002105,2]
[385955574,1758151832383,-150.0,0.0002105,2]
[385955575,1758151832398,-500.0,0.0002105,2]
[385955576,1758151832408,-287.59245976,0.0002105,2]
[385955577,1758151832418,-500.0,0.0002105,2]
[385955578,1758151832428,-500.0,0.0002105,2]
[385955579,1758151832438,-500.0,0.0002105,2]
[385955580,1758151832448,-500.0,0.0002105,2]
[385955581,1758151832459,-500.0,0.0002105,2]
[385955582,1758151832469,-500.0,0.0002105,2]
[385955583,1758151832479,-500.0,0.0002105,2]
[385955584,1758151832489,-393.27174927,0.0002105,2]
[385955585,1758151832499,-500.0,0.0002105,2]
[385955586,1758151832509,-500.0,0.0002105,2]
[385955587,1758151832518,-500.0,0.0002105,2]
[385955588,1758151832529,-500.0,0.0002105,2]
[385955589,1758151832539,-500.0,0.0002105,2]
[385955590,1758151832549,-500.0,0.0002105,2]
[385955591,1758151832559,-500.0,0.0002105,2]
[385955592,1758151832949,-500.0,0.0002105,2]
[385955593,1758151832959,-500.0,0.0002105,2]
[385955594,1758151832968,-500.0,0.0002105,2]
[385955595,1758151832978,-500.0,0.0002105,2]
[385955596,1758151832987,-500.0,0.0002105,2]
[385955597,1758151832996,-500.0,0.0002105,2]
[385955598,1758151833006,-500.0,0.0002105,2]
[385955599,1758151833015,-500.0,0.0002105,2]
[385955600,1758151833025,-500.0,0.0002105,2]
[385955601,1758151833034,-500.0,0.0002105,2]
[385955602,1758151833044,-500.0,0.0002105,2]
[385955603,1758151833053,-500.0,0.0002105,2]
[385955604,1758151833063,-500.0,0.0002105,2]
[385955605,1758151833072,-500.0,0.0002105,2]
[385955606,1758151833082,-500.0,0.0002105,2]
[385955607,1758151833094,-500.0,0.0002105,2]
[385955608,1758151833104,-150.0,0.0002105,2]
[385955609,1758151833114,-200.0,0.0002105,2]
[385955610,1758151833123,-211.65534233,0.0002105,2]
[385955611,1758151833133,-500.0,0.0002105,2]
[385955612,1758151833145,-150.0,0.0002105,2]
[385955613,1758151833155,-500.0,0.0002105,2]
[385955614,1758151833165,-150.0,0.0002105,2]
[385955615,1758151833175,-500.0,0.0002105,2]
[385955616,1758151833186,-500.0,0.0002105,2]
[385955617,1758151833196,-500.0,0.0002105,2]
[385955618,1758151833206,-500.0,0.0002105,2]
[385955619,1758151833217,-500.0,0.0002105,2]
[385955620,1758151833228,-500.0,0.0002105,2]
[385955621,1758151833237,-500.0,0.0002105,2]
[385955622,1758151833247,-350.0,0.0002105,2]
[385955623,1758151833257,-500.0,0.0002105,2]
[385955624,1758151833266,-500.0,0.0002105,2]
[385955625,1758151833276,-500.0,0.0002105,2]
[385955626,1758151833285,-500.0,0.0002105,2]
[385955627,1758151833295,-500.0,0.0002105,2]
[385955628,1758151833305,-500.0,0.0002105,2]
[385955629,1758151833315,-500.0,0.0002105,2]
[385955630,1758151833324,-500.0,0.0002105,2]
[385955631,1758151833335,-500.0,0.0002105,2]
[385955632,1758151833345,-500.0,0.0002105,2]
[385955633,1758151833355,-500.0,0.0002105,2]
[385955634,1758151833364,-500.0,0.0002105,2]
[385955635,1758151833374,-500.0,0.0002105,2]
[385955636,1758151833384,-500.0,0.0002105,2]
[385955637,1758151833394,-500.0,0.0002105,2]
[385955638,1758151833403,-500.0,0.0002105,2]
[385955639,1758151833412,-500.0,0.0002105,2]
[385955640,1758151833422,-500.0,0.0002105,2]
[385955641,1758151833432,-500.0,0.0002105,2]
[385955642,1758151833441,-500.0,0.0002105,2]
[385955643,1758151833451,-500.0,0.0002105,2]
[385955644,1758151833461,-500.0,0.0002105,2]
[385955645,1758151833470,-500.0,0.0002105,2]
[385955646,1758151833480,-500.0,0.0002105,2]
[385955647,1758151833490,-500.0,0.0002105,2]
[385955648,1758151833499,-500.0,0.0002105,2]
[385955649,1758151833509,-500.0,0.0002105,2]
[385955650,1758151833518,-500.0,0.0002105,2]
[385955651,1758151833527,-500.0,0.0002105,2]
[385955652,1758151833537,-500.0,0.0002105,2]
[385955653,1758151833547,-500.0,0.0002105,2]
[385955654,1758151833556,-250.0,0.0002105,2]
[385955655,1758151833566,-1415.2614476,0.00021051,2]
[385955656,1758151833576,-15630.53752,0.00021051,2]
[385955657,1758151833588,-1981.7161957,0.00021051,2]
[385955658,1758151833598,-22567.6251975,0.00021051,2]
[385955659,1758151833608,-500.71240189,0.00021073,2]
[385955660,1758151833618,-500.0,0.00021073,2]
[385955661,1758151833627,-500.0,0.00021073,2]
[385955662,1758151833638,-500.0,0.00021075,2]
[385955663,1758151833647,-171.94996758,0.00021075,2]
[385955664,1758151833658,-387.5624679,0.00021075,2]
[385955665,1758151833667,-502.88935764,0.00021075,2]
[385955666,1758151833677,-500.0,0.00021075,2]
[385955667,1758151833686,-500.0,0.00021075,2]
[385955668,1758151833696,-500.0,0.00021075,2]
[385955669,1758151833706,-500.0,0.00021075,2]
[385955670,1758151833715,-500.46899546,0.00021075,2]
[385955671,1758151833724,-500.0,0.00021075,2]
[385955672,1758151833733,-500.0,0.00021075,2]
[385955673,1758151833743,-151.0,0.00021125,2]
[385955674,1758151833752,-3000.0,0.00021125,2]
[385955675,1758151833762,-248.71531821,0.00021125,2]
[385955676,1758151833771,-151.0,0.00021125,2]
[385955677,1758151833780,-946.61909315,0.00021125,2]
[385955678,1758151833790,-151.0,0.00021125,2]
[385955679,1758151833801,-150.0,0.00021161,4]
[385955680,1758151833810,-844.26332795,0.00021166,2]
[385955681,1758151833820,-278.0,0.0002117,2]
[385955682,1758151833829,-300.0,0.000213,2]
[385955683,1758151833839,-150.0,0.00021324,2]
[385955684,1758151833849,-500.0,0.00021324,2]
[385955685,1758151833858,-150.0,0.00021324,2]
[385955686,1758151833867,-150.0,0.00021324,2]
[385955687,1758151833877,-150.0,0.00021324,2]
[385955688,1758151833886,-150.0,0.00021324,2]
[385955689,1758151833895,-150.0,0.00021324,2]
[385955690,1758151833905,-500.0,0.00021324,2]
[385955691,1758151833914,-500.0,0.00021324,2]
[385955692,1758151833923,-150.0,0.00021324,2]
[385955693,1758151833932,-500.0,0.00021324,2]
[385955694,1758151833942,-500.0,0.00021324,2]
[385955695,1758151833952,-500.0,0.00021324,2]
[385955696,1758151833962,-500.0,0.00021324,2]
[385955697,1758151833971,-150.0,0.00021404,4]
[385955698,1758151833981,-7000.0,0.0002151,2]
[385955699,1758151833991,-7000.0,0.0002151,2]
[385955700,1758151834000,-5888.0,0.00021515,2]
[385955701,1758151834009,-760.06764174,0.00021522,2]
[385955702,1758151834019,-1000.0,0.0002153,2]
[385955703,1758151834029,-487.61,0.0002153,2]
[385955704,1758151834038,-451.82194409,0.0002157,2]
[385955705,1758151834047,-604.15,0.0002159,2]
[385955706,1758151834057,-150.0,0.00021598,2]
[385955707,1758151834066,-500.0,0.00021598,2]